{"text_format":"1","workbook":"xlsx","n_sheets":3,"sheets":["Arbeitsblatt","Daten_Abteilungen","Daten_Fluss"],"not_rendered":{"charts":0,"images":0,"macros":1,"external_links":0,"defined_names":2,"comments":0,"pivot_tables":0},"unopened":[],"bounds":{"document_bytes":16777216,"sheet_cells":100000,"rows_first":2000,"rows_last":500,"rows_between":2000,"halvings":0,"cell_chars":16384,"cell_head_chars":4096},"cells_cut":0,"cells_raw":0,"read":"whole","date_system":"1900"}

{"sheet":"Arbeitsblatt","index":0,"n_rows":8,"n_cols":17,"rows_kept":8,"cut":false,"hidden":false,"merged":[]}
[]
[]
[]
[]
[]
[]
[null,null,null,null,null,null,null,null,null,null,null,null,null,null,null,null,"Zum Aufrufen des Dialogs auf die Schaltfläche \"Kreisverfahren…\""]
[null,null,null,null,null,null,null,null,null,null,null,null,null,null,null,null,"klicken!"]

{"sheet":"Daten_Abteilungen","index":1,"n_rows":16,"n_cols":11,"rows_kept":16,"cut":false,"hidden":false,"merged":[]}
["Pos","Abteilung","Bezeichnung","Startmaschine","Endemaschine","Eingehende Verbindungen","Ausgehende Verbindungen","Anzahl:",{"$f":"COUNT(D:D)","v":15},null,"Achtung: Die Abteilungen müssen eindeutig sein!"]
[15,"C","Beispiel C",0,0.05,{"$f":"COUNTIF(Daten_Fluss!A:A,B2)","v":1},{"$f":"COUNTIF(Daten_Fluss!B:B,B2)","v":1}]
[14,"A","Beispiel A",0.12,0,{"$f":"COUNTIF(Daten_Fluss!A:A,B3)","v":1},{"$f":"COUNTIF(Daten_Fluss!B:B,B3)","v":1}]
[13,"B","Beispiel B",0.95,0.02,{"$f":"COUNTIF(Daten_Fluss!A:A,B4)","v":1},{"$f":"COUNTIF(Daten_Fluss!B:B,B4)","v":2}]
[12,"J","Beispiel J",0,0,{"$f":"COUNTIF(Daten_Fluss!A:A,B5)","v":2},{"$f":"COUNTIF(Daten_Fluss!B:B,B5)","v":1}]
[11,"D","Beispiel D",0,0.02,{"$f":"COUNTIF(Daten_Fluss!A:A,B6)","v":1},{"$f":"COUNTIF(Daten_Fluss!B:B,B6)","v":1}]
[10,"F","Beispiel F",0,0,{"$f":"COUNTIF(Daten_Fluss!A:A,B7)","v":1},{"$f":"COUNTIF(Daten_Fluss!B:B,B7)","v":2}]
[9,"M","Beispiel M",0,0,{"$f":"COUNTIF(Daten_Fluss!A:A,B8)","v":2},{"$f":"COUNTIF(Daten_Fluss!B:B,B8)","v":1}]
[8,"L","Beispiel L",0,1,{"$f":"COUNTIF(Daten_Fluss!A:A,B9)","v":0},{"$f":"COUNTIF(Daten_Fluss!B:B,B9)","v":1}]
[7,"G","Beispiel G",0,0.05,{"$f":"COUNTIF(Daten_Fluss!A:A,B10)","v":2},{"$f":"COUNTIF(Daten_Fluss!B:B,B10)","v":2}]
[6,"I","Beispiel I",0,1,{"$f":"COUNTIF(Daten_Fluss!A:A,B11)","v":0},{"$f":"COUNTIF(Daten_Fluss!B:B,B11)","v":1}]
[5,"O","Beispiel O",0,0,{"$f":"COUNTIF(Daten_Fluss!A:A,B12)","v":1},{"$f":"COUNTIF(Daten_Fluss!B:B,B12)","v":1}]
[4,"N","Beispiel N",0,0,{"$f":"COUNTIF(Daten_Fluss!A:A,B13)","v":1},{"$f":"COUNTIF(Daten_Fluss!B:B,B13)","v":1}]
[3,"E","Beispiel E",1,0.05,{"$f":"COUNTIF(Daten_Fluss!A:A,B14)","v":2},{"$f":"COUNTIF(Daten_Fluss!B:B,B14)","v":0}]
[2,"H","Beispiel H",0,0.05,{"$f":"COUNTIF(Daten_Fluss!A:A,B15)","v":1},{"$f":"COUNTIF(Daten_Fluss!B:B,B15)","v":1}]
[1,"K","Beispiel K",0,0,{"$f":"COUNTIF(Daten_Fluss!A:A,B16)","v":1},{"$f":"COUNTIF(Daten_Fluss!B:B,B16)","v":1}]

{"sheet":"Daten_Fluss","index":2,"n_rows":18,"n_cols":9,"rows_kept":18,"cut":false,"hidden":false,"merged":[]}
["Von","Nach","Jahresbedarf",null,null,"JB-max",{"$f":"MAX(C:C)","v":15915},null,"Achtung: Die Transporte \"Von\" / \"Nach\" müssen eindeutig sein!"]
["F","L",15915]
["B","F",11395]
["J","G",9206]
["G","B",8568]
["C","J",7378]
["O","K",5210]
["A","F",5065]
["G","A",5065]
["N","M",4755]
["K","G",4709]
["M","C",4604]
["M","O",3878]
["E","N",3434]
["J","H",3363]
["E","D",3103]
["D","I",2978]
["H","B",2950]